fUSD/lending_fUSD_20250405
["ID","MTS","AMOUNT","RATE_DAILY","PERIOD"]
[357202925,1743891053091,-500.0,0.00030957,2]
[357202926,1743891053100,-500.0,0.00030957,2]
[357202927,1743891053110,-500.0,0.00030957,2]
[357202928,1743891053119,-500.0,0.00030957,2]
[357202929,1743891053129,-586.00904635,0.00030957,2]
[357202930,1743891053139,-500.0,0.00030957,2]
[357202931,1743891053149,-500.0,0.00030958,2]
[357202932,1743891053159,-500.0,0.00030958,2]
[357202933,1743891053169,-500.0,0.00030958,2]
[357202934,1743891053179,-500.0,0.00030958,2]
[357202935,1743891053188,-500.0,0.00030958,2]
[357202936,1743891053198,-500.0,0.00030958,2]
[357202937,1743891053207,-500.0,0.00030958,2]
[357202938,1743891053217,-637.28211089,0.00030958,2]
[357202939,1743891053227,-500.0,0.00030958,2]
[357202940,1743891053236,-500.0,0.00030958,2]
[357202941,1743891053245,-500.0,0.00030958,2]
[357202942,1743891053254,-500.0,0.00030958,2]
[357202943,1743891053263,-500.0,0.00030958,2]
[357202944,1743891053272,-500.0,0.00030958,2]
[357202945,1743891053282,-500.0,0.00030958,2]
[357202946,1743891053291,-500.0,0.00030958,2]
[357202947,1743891053301,-500.0,0.00030958,2]
[357202948,1743891053310,-500.0,0.00030958,2]
[357202949,1743891053320,-500.0,0.00030958,2]
[357202950,1743891053329,-500.0,0.00030958,2]
[357202951,1743891053339,-500.0,0.00030958,2]
[357202952,1743891053348,-6618.83,0.00030958,2]
[357202953,1743891053357,-500.0,0.00030958,2]
[357202954,1743891053367,-500.0,0.00030958,2]
[357202955,1743891053377,-459.09095557,0.00030958,2]
[357202956,1743891053386,-500.0,0.00030958,2]
[357202957,1743891053396,-500.0,0.00030958,2]
[357202958,1743891053405,-500.0,0.00030958,2]
[357202959,1743891053415,-537.22,0.00030958,2]
[357202960,1743891053425,-500.0,0.00030958,2]
[357202961,1743891053435,-574.38,0.00030958,2]
[357202962,1743891053444,-549.15,0.00030958,2]
[357202963,1743891053454,-4074.96,0.00030958,2]
[357202964,1743891053463,-500.0,0.00030958,2]
[357202965,1743891053473,-1831.85,0.00030958,2]
[357202966,1743891053482,-500.0,0.00030958,2]
[357202967,1743891053491,-500.0,0.00030958,2]
[357202968,1743891053501,-978.64,0.00030958,2]
[357202969,1743891053510,-500.0,0.00030958,2]
[357202970,1743891053518,-500.0,0.00030958,2]
[357202971,1743891053527,-500.0,0.00030958,2]
[357202972,1743891053537,-2087.13,0.00030958,2]
[357202973,1743891053546,-7919.85,0.00030958,2]
[357202974,1743891053555,-500.0,0.00030958,2]
[357202975,1743891053565,-611.88253533,0.00030958,2]
[357202976,1743891053574,-500.0,0.00030958,2]
[357202977,1743891053583,-500.0,0.00030958,2]
[357202978,1743891053593,-500.0,0.00030958,2]
[357202979,1743891053602,-500.0,0.00030958,2]
[357202980,1743891053611,-500.0,0.00030958,2]
[357202981,1743891053621,-500.0,0.00030958,2]
[357202982,1743891053630,-500.0,0.00030958,2]
[357202983,1743891053640,-1172.0,0.00030958,2]
[357202984,1743891053649,-284.2867995,0.00030958,2]
[357202985,1743891053659,-500.0,0.00030958,2]
[357202986,1743891053672,-500.0,0.00030958,2]
[357202987,1743891053682,-500.0,0.00030958,2]
[357202988,1743891053691,-661.48,0.00031064,2]
[357202989,1743891053700,-24230.038186,0.00031211,2]
[357202990,1743891053711,-9692.0152744,0.00031212,2]
[357202991,1743891053720,-196.29112732,0.00031231,2]
[357202992,1743891053729,-536.17531062,0.00031231,2]
[357202993,1743891053739,-500.0,0.00031231,2]
[357202994,1743891053748,-500.0,0.00031231,2]
[357202995,1743891053757,-500.0,0.00031231,2]
[357202996,1743891053766,-500.0,0.00031231,2]
[357202997,1743891053775,-500.0,0.00031231,2]
[357202998,1743891053784,-500.0,0.00031231,2]
[357202999,1743891053794,-500.0,0.00031231,2]
[357203000,1743891053803,-500.0,0.00031231,2]
[357203001,1743891053812,-500.0,0.00031231,2]
[357203002,1743891053821,-500.0,0.00031231,2]
[357203003,1743891053830,-500.0,0.00031231,2]
[357203004,1743891053839,-500.0,0.00031231,2]
[357203005,1743891053848,-500.0,0.00031231,2]
[357203006,1743891053857,-500.0,0.00031231,2]
[357203007,1743891053866,-500.0,0.00031231,2]
[357203008,1743891053875,-500.0,0.00031231,2]
[357203009,1743891053885,-531.10855265,0.00031231,2]
[357203010,1743891053893,-396.36956271,0.00031231,2]
[357203011,1743891053902,-500.0,0.00031231,2]
[357203012,1743891053911,-500.0,0.00031231,2]
[357203013,1743891053920,-401.96002323,0.00031231,2]
[357203014,1743891053929,-500.0,0.00031231,2]
[357203015,1743891053938,-500.0,0.00031231,2]
[357203016,1743891053948,-500.0,0.00031231,2]
[357203017,1743891053957,-500.0,0.00031231,2]
[357203018,1743891053966,-593.03498818,0.00031231,2]
[357203019,1743891053975,-500.0,0.00031231,2]
[357203020,1743891053984,-225.4729375,0.00031231,2]
[357203021,1743891053994,-500.0,0.00031231,2]
[357203022,1743891054004,-500.0,0.00031231,2]
[357203023,1743891054013,-500.0,0.00031231,2]
[357203024,1743891054023,-229.89415652,0.00031231,2]
[357203025,1743891054032,-500.0,0.00031231,2]
[357203026,1743891054042,-500.0,0.00031231,2]
[357203027,1743891054052,-500.0,0.00031231,2]
[357203028,1743891054062,-500.0,0.00031231,2]
[357203029,1743891054071,-484.39847539,0.00031231,2]
[357203030,1743891054081,-500.0,0.00031231,2]
[357203031,1743891054090,-500.0,0.00031231,2]
[357203032,1743891054099,-500.0,0.00031231,2]
[357203033,1743891054108,-500.0,0.00031231,2]
[357203034,1743891054118,-500.0,0.00031231,2]
[357203035,1743891054127,-500.0,0.00031231,2]
[357203036,1743891054137,-500.0,0.00031231,2]
[357203037,1743891054146,-580.22799178,0.00031231,2]
[357203038,1743891054156,-500.0,0.00031231,2]
[357203039,1743891054165,-500.0,0.00031231,2]
[357203040,1743891054174,-500.0,0.00031231,2]
[357203041,1743891054184,-500.0,0.00031231,2]
[357203042,1743891054193,-37.42849893,0.00031231,2]
[357203043,1743891054315,-198.72,0.00030136,2]
[357203044,1743891054367,-151.33,0.00030136,2]
[357203045,1743891074998,179.24,0.00013699,2]
[357203046,1743891509031,205.06,0.00029447,120]
[357203047,1743891936762,-250.0,0.00019,2]
[357203048,1743891936963,-849750.0,0.0002,2]
[357203061,1743892007531,-350.89907894,0.00019899,2]
[357203062,1743892020694,-150.0,0.00024,5]
[357203063,1743892028714,-120.9266443,0.00019899,2]
[357203064,1743892028736,-29.0733557,0.000199,3]
[357203065,1743892031554,2163.02340811,0.00015,2]
[357203066,1743892032103,-398.2235,0.000199,3]
[357203071,1743892080408,1337942.25045836,0.00015,2]
[357203072,1743892080436,1000.0,0.00015,2]
[357203073,1743892082577,-173.19014926,0.00015,2]
[357203074,1743892089828,-154.5891631,0.00015,2]
[357203075,1743892096020,161.08,0.0001499,3]
[357203076,1743892102756,-25.07175632,0.000199,3]
[357203077,1743892112590,-187.46393948,0.00014999,2]
[357203078,1743892112615,-109.70812621,0.00015,2]
[357203079,1743892121984,-360.33269572,0.00015,2]
[357203083,1743892134455,-9569.45596863,0.00015,2]
[357203084,1743892134516,-9569.45596863,0.00015,2]
[357203086,1743892134586,-1528.07100839,0.00015,2]
[357203088,1743892135696,-150.0,0.00015,2]
[357203089,1743892142602,-203.13542126,0.00014999,2]
[357203090,1743892159405,-96.86457874,0.00014999,2]
[357203091,1743892159440,-9885.93104881,0.00015,2]
[357203093,1743892159656,-3071.32054229,0.00015,2]
[357203094,1743892159696,-9982.79562755,0.00015,2]
[357203095,1743892160296,-221.23742989,0.00015,2]
[357203096,1743892184412,-10443.53386349,0.00015,2]
[357203097,1743892184479,-10443.53386349,0.00015,2]
[357203098,1743892184536,-780.78525202,0.00015,2]
[357203099,1743892185170,-165.11349362,0.00015,2]
[357203100,1743892203488,-158.08742322,0.00014999,2]
[357203101,1743892204025,-141.91257678,0.00014999,2]
[357203102,1743892204048,-16.17484644,0.00014999,2]
[357203103,1743892205484,2898.43,0.0001499,2]
[357203104,1743892205773,1800.85224958,0.0001499,2]
[357203105,1743892205796,1097.57775042,0.0001499,2]
[357203106,1743892207854,-133.82515356,0.00014999,2]
[357203107,1743892207878,-29.82574678,0.00015,2]
[357203108,1743892209682,-10876.89092307,0.00015,2]
[357203109,1743892209735,-10234.03613901,0.00015,2]
[357203110,1743892212689,668.87,0.0001499,2]
[357203111,1743892212907,668.87,0.0001499,2]
[357203112,1743892214409,-239.54394806,0.00015,2]
[357203113,1743892219689,-222.67521801,0.00015,2]
[357203119,1743892232336,-13131.133301,0.00015,2]
[357203121,1743892232347,-21152.95045293,0.00015,2]
[357203123,1743892232359,-610.0,0.00015,2]
[357203124,1743892232410,-290.00835356,0.00015,2]
[357203125,1743892232425,-350.0,0.00015,2]
[357203126,1743892232499,-5801.62938366,0.00015,2]
[357203127,1743892232511,-363.00845049,0.00015,2]
[357203128,1743892232522,-1391.08289891,0.00015,2]
[357203129,1743892232532,-905.69823873,0.00015,2]
[357203130,1743892232581,-370.04022624,0.00015,2]
[357203131,1743892232658,-6907.06753036,0.00015,2]
[357203132,1743892232670,-639.1315495,0.00015,2]
[357203191,1743892234459,-166.99823948,0.00015,2]
[357203195,1743892238246,-1803.70000001,0.00015,2]
[357203196,1743892238317,-1217.63557993,0.00015,2]
[357203197,1743892238391,-1200.0,0.00015,2]
[357203198,1743892238402,-2274.40999996,0.00015,2]
[357203199,1743892238414,-1036.01785492,0.00015,2]
[357203200,1743892238425,-2115.47849276,0.00015,2]
[357203201,1743892238437,-257.26787767,0.00015,2]
[357203202,1743892238477,-25743.47828297,0.00015,2]
[357203204,1743892238488,-604.71309673,0.00015,2]
[357203216,1743892240403,-919.39818052,0.00015,2]
[357203217,1743892240414,-82065.62364226,0.00015,2]
[357203218,1743892240425,-1150.81751087,0.00015,2]
[357203219,1743892240437,-1249.4296693,0.00015,2]
[357203220,1743892240491,-345449.14739187,0.00015,2]
[357203221,1743892240501,-2153.51509065,0.00015,2]
[357203222,1743892240511,-499.999999,0.000151,2]
[357203223,1743892240520,-255.0,0.00016124,2]
[357203224,1743892240529,-420.0,0.00016416,2]
[357203225,1743892240538,-433.0,0.00017339,2]
[357203226,1743892240551,-163.0,0.00017966,2]
[357203227,1743892240561,-680.13125246,0.00018,2]
[357203228,1743892240574,-250.0,0.00018629,2]
[357203229,1743892240584,-2153.51509065,0.00018878,2]
[357203230,1743892240594,-154.5891631,0.00019799,2]
[357203231,1743892240603,-349.01,0.000199,2]
[357203232,1743892240614,-454.4224,0.000199,2]
[357203233,1743892240623,-1000.0,0.000199,2]
[357203234,1743892240632,-2363.7449,0.000199,2]
[357203235,1743892240643,-978.69457598,0.000199,2]
[357203236,1743892240652,-978.69457597,0.000199,2]
[357203237,1743892240663,-514.0,0.0001997,2]
[357203238,1743892240672,-162.16494766,0.00019973,2]
[357203239,1743892240682,-500.0,0.00019973,2]
[357203240,1743892240692,-500.0,0.00019973,2]
[357203241,1743892240702,-509.40380115,0.00019973,2]
[357203242,1743892240711,-319.24938404,0.00019973,2]
[357203243,1743892240721,-200.50540931,0.00019973,2]
[357203244,1743892240731,-164.05735681,0.00019973,2]
[357203245,1743892240741,-160.67863633,0.00019973,2]
[357203246,1743892240750,-160.87933285,0.00019973,2]
[357203247,1743892240760,-500.0,0.00019973,2]
[357203248,1743892240770,-500.0,0.00019973,2]
[357203249,1743892240779,-153.66925699,0.00019973,2]
[357203250,1743892240789,-479.00088233,0.00019999,2]
[357203251,1743892240798,-342511.89983491,0.0002,2]
[357203252,1743892240808,-150.74,0.0002,2]
[357203253,1743892240817,-212.99892041,0.0002035,2]
[357203255,1743892240826,-250.0,0.0002045,2]
[357203256,1743892240836,-23900.0,0.00020978,2]
[357203258,1743892240845,-300.0,0.00021,2]
[357203260,1743892240855,-150.0,0.00021518,2]
[357203262,1743892240864,-260.71490296,0.000217,2]
[357203264,1743892240874,-250.0,0.0002189,2]
[357203267,1743892240883,-246.97131354,0.00022,2]
[357203269,1743892240896,-500.0,0.00022,2]
[357203271,1743892240905,-250.0,0.00022,2]
[357203273,1743892240914,-1139.56513081,0.000225,2]
[357203276,1743892240923,-2153.51509065,0.00022756,2]
[357203278,1743892240933,-350.0,0.00023,2]
[357203280,1743892240942,-572.045055,0.000232,2]
[357203282,1743892240951,-50206.10178317,0.000232,2]
[357203284,1743892240960,-200.0,0.000235,2]
[357203285,1743892240969,-6672.0,0.000238,2]
[357203287,1743892240978,-4850.004999,0.00024,5]
[357203289,1743892240988,-40721.98840187,0.00024,2]
[357203291,1743892240998,-12620.4529335,0.00024,2]
[357203292,1743892241008,-783.84768066,0.0002402,2]
[357203293,1743892241018,-505.94645046,0.000241,2]
[357203294,1743892241027,-405.79238113,0.0002421,2]
[357203295,1743892241036,-3555.72150417,0.0002421,2]
[357203296,1743892241046,-5555.0,0.000247,3]
[357203297,1743892241055,-500.0,0.00024773,2]
[357203298,1743892241064,-470.7588886,0.00024773,2]
[357203299,1743892241074,-501.86842791,0.00024773,2]
[357203300,1743892241084,-500.0,0.00024773,2]
[357203301,1743892241093,-503.54853713,0.00024773,2]
[357203302,1743892241102,-501.99125591,0.00024773,2]
[357203303,1743892241112,-500.0,0.00024773,2]
[357203304,1743892241121,-502.3331237,0.00024773,2]
[357203305,1743892241130,-500.0,0.00024773,2]
[357203306,1743892241140,-209.37645547,0.00024773,2]
[357203307,1743892241150,-191.72524463,0.0002479,2]
[357203308,1743892241159,-153.03,0.00024799,2]
[357203309,1743892241169,-153.03,0.00024799,2]
[357203310,1743892241178,-285804.896585,0.000248,2]
[357203311,1743892241187,-512.34243424,0.0002488,7]
[357203312,1743892241196,-62625.3294655,0.000249,2]
[357203313,1743892241205,-400.0,0.00025,2]
[357203314,1743892241215,-785.28095846,0.00025,2]
[357203315,1743892241224,-2609.38872773,0.0002509,2]
[357203316,1743892241237,-1000.0,0.00025452,2]
[357203317,1743892241246,-500.0,0.00025452,2]
[357203318,1743892241255,-500.0,0.00025452,2]
[357203319,1743892241265,-440.42116272,0.00025452,2]
[357203320,1743892241274,-5555.0,0.000257,5]
[357203321,1743892241284,-487.52111305,0.00026123,2]
[357203322,1743892241293,-2153.51509065,0.00026633,2]
[357203323,1743892241303,-165.5,0.00026849,2]
[357203324,1743892241312,-450.0,0.00027,2]
[357203325,1743892241321,-792.44,0.0002732,2]
[357203326,1743892241331,-155.53,0.00027394,2]
[357203327,1743892241340,-2043.79583998,0.000275,2]
[357203328,1743892241350,-727.62,0.00027652,2]
[357203329,1743892241359,-500.0,0.00029,2]
[357203330,1743892241368,-727.62,0.00029034,2]
[357203331,1743892241378,-150.0,0.00029071,7]
[357203332,1743892241387,-153.7,0.00029129,2]
[357203333,1743892241397,-250.0,0.00029172,2]
[357203334,1743892241406,-2042.07,0.00029258,2]
[357203335,1743892241415,-2609.38872773,0.00029297,2]
[357203336,1743892241425,-1000.0,0.00029307,2]
[357203337,1743892241434,-503.04,0.00029476,2]
[357203338,1743892241443,-792.44,0.00029584,2]
[357203339,1743892241452,-2609.38872773,0.00029589,2]
[357203340,1743892241462,-25567.55,0.00029599,2]
[357203341,1743892241472,-976.64283216,0.00029666,2]
[357203342,1743892241482,-500.0,0.00029881,3]
[357203343,1743892241493,-222.7585,0.00030036,2]
[357203344,1743892241502,-2609.38872773,0.00030126,2]
[357203345,1743892241511,-633.272,0.00030135,25]
[357203346,1743892241520,-500.0,0.00030136,2]
[357203347,1743892241529,-298.78042356,0.00030136,2]
[357203348,1743892241538,-500.0,0.00030136,2]
[357203349,1743892241547,-500.0,0.00030136,2]
[357203350,1743892241557,-500.05976109,0.00030136,2]
[357203351,1743892241569,-500.0,0.00030136,2]
[357203352,1743892241579,-500.0,0.00030136,2]
[357203353,1743892241590,-500.0,0.00030136,2]
[357203354,1743892241599,-500.0,0.00030136,2]
[357203355,1743892241611,-668.27,0.00030136,2]
[357203356,1743892241621,-683.11,0.00030136,2]
[357203357,1743892241631,-500.0,0.00030136,2]
[357203358,1743892241641,-500.0,0.00030136,2]
[357203359,1743892241652,-500.0,0.00030136,2]
[357203360,1743892241663,-500.0,0.00030136,2]
[357203361,1743892241673,-500.0,0.00030136,2]
[357203362,1743892241683,-4035.3,0.00030136,2]
[357203363,1743892241692,-500.0,0.00030136,2]
[357203364,1743892241702,-500.0,0.00030136,2]
[357203365,1743892241712,-500.0,0.00030136,2]
[357203366,1743892241722,-500.0,0.00030136,2]
[357203367,1743892241732,-500.0,0.00030136,2]
[357203368,1743892241742,-500.0,0.00030136,2]
[357203369,1743892241751,-619.63518357,0.00030136,2]
[357203370,1743892241760,-500.0,0.00030136,2]
[357203371,1743892241770,-500.0,0.00030136,2]
[357203372,1743892241779,-500.0,0.00030136,2]
[357203373,1743892241789,-500.0,0.00030136,2]
[357203374,1743892241798,-500.0,0.00030136,2]
[357203375,1743892241808,-500.0,0.00030136,2]
[357203376,1743892241817,-500.0,0.00030136,2]
[357203377,1743892241826,-500.0,0.00030136,2]
[357203378,1743892241836,-500.0,0.00030136,2]
[357203379,1743892241845,-500.0,0.00030136,2]
[357203380,1743892241854,-500.0,0.00030136,2]
[357203381,1743892241864,-500.0,0.00030136,2]
[357203382,1743892241873,-500.0,0.00030136,2]
[357203383,1743892241882,-586.65761918,0.00030136,2]
[357203384,1743892241891,-500.0,0.00030136,2]
[357203385,1743892241900,-508.77617516,0.00030136,2]
[357203386,1743892242108,-511.11320989,0.00030136,2]
[357203387,1743892242119,-500.0,0.00030136,2]
[357203388,1743892242129,-505.18298115,0.00030136,2]
[357203389,1743892242139,-532.85084045,0.00030136,2]
[357203390,1743892242148,-511.40677429,0.00030136,2]
[357203391,1743892242157,-500.0,0.00030136,2]
[357203392,1743892242166,-500.0,0.00030136,2]
[357203393,1743892242176,-500.0,0.00030136,2]
[357203394,1743892242185,-500.0,0.00030136,2]
[357203395,1743892242194,-509.13340703,0.00030136,2]
[357203396,1743892242204,-500.0,0.00030136,2]
[357203397,1743892242214,-522.68218665,0.00030136,2]
[357203398,1743892242223,-1000.0,0.00030252,5]
[357203399,1743892242232,-998.43985831,0.00030252,5]
[357203400,1743892242241,-572.045055,0.00030299,2]
[357203401,1743892242251,-2609.38872773,0.000303,2]
[357203402,1743892242261,-397.265,0.0003031,2]
[357203403,1743892242270,-166.67,0.00030392,2]
[357203404,1743892242280,-363.80493285,0.00030409,2]
[357203405,1743892242289,-500.0,0.0003041,2]
[357203406,1743892242299,-500.0,0.0003041,2]
[357203407,1743892242308,-500.0,0.0003041,2]
[357203408,1743892242318,-500.0,0.0003041,2]
[357203409,1743892242327,-500.0,0.0003041,2]
[357203410,1743892242338,-668.27,0.0003041,2]
[357203411,1743892242350,-683.11,0.0003041,2]
[357203412,1743892242360,-500.0,0.0003041,2]
[357203413,1743892242370,-500.0,0.0003041,2]
[357203414,1743892242379,-500.0,0.0003041,2]
[357203415,1743892242389,-500.0,0.0003041,2]
[357203416,1743892242398,-500.0,0.0003041,2]
[357203417,1743892242407,-4035.3,0.0003041,2]
[357203418,1743892242416,-500.0,0.0003041,2]
[357203419,1743892242426,-500.0,0.0003041,2]
[357203420,1743892242435,-539.21243382,0.0003041,2]
[357203421,1743892242444,-500.0,0.0003041,2]
[357203422,1743892242453,-500.0,0.0003041,2]
[357203423,1743892242463,-500.0,0.0003041,2]
[357203424,1743892242473,-500.0,0.0003041,2]
[357203425,1743892242484,-500.0,0.0003041,2]
[357203426,1743892242493,-500.0,0.0003041,2]
[357203427,1743892242502,-500.0,0.0003041,2]
[357203428,1743892242515,-500.0,0.0003041,2]
[357203429,1743892242525,-500.0,0.0003041,2]
[357203430,1743892242535,-500.0,0.0003041,2]
[357203431,1743892242544,-500.0,0.0003041,2]
[357203432,1743892242553,-500.0,0.0003041,2]
[357203433,1743892242564,-500.0,0.0003041,2]
[357203434,1743892242576,-633.0988922,0.0003041,2]
[357203435,1743892242585,-500.0,0.0003041,2]
[357203436,1743892242595,-500.0,0.0003041,2]
[357203437,1743892242605,-301.29139777,0.0003041,2]
[357203438,1743892242614,-497.36128,0.0003041,2]
[357203439,1743892242624,-500.0,0.0003041,2]
[357203440,1743892242633,-500.0,0.0003041,2]
[357203441,1743892242642,-246.89620376,0.0003041,2]
[357203442,1743892242654,-500.0,0.0003041,2]
[357203443,1743892242663,-502.42741838,0.00030411,5]
[357203444,1743892242672,-727.62,0.00030417,2]
[357203445,1743892242682,-2153.51509065,0.00030511,2]
[357203446,1743892242691,-167.20339387,0.00030584,2]
[357203447,1743892242701,-2609.38872773,0.00030674,2]
[357203448,1743892242710,-500.0,0.00030684,2]
[357203449,1743892242719,-500.0,0.00030684,2]
[357203450,1743892242729,-500.0,0.00030684,2]
[357203451,1743892242738,-500.0,0.00030684,2]
[357203452,1743892242748,-668.27,0.00030684,2]
[357203453,1743892242758,-683.11,0.00030684,2]
[357203454,1743892242768,-500.0,0.00030684,2]
[357203455,1743892242777,-500.0,0.00030684,2]
[357203456,1743892242786,-500.0,0.00030684,2]
[357203457,1743892242796,-500.0,0.00030684,2]
[357203458,1743892242805,-500.0,0.00030684,2]
[357203459,1743892242815,-4035.3,0.00030684,2]
[357203460,1743892242824,-500.0,0.00030684,2]
[357203461,1743892242834,-500.0,0.00030684,2]
[357203462,1743892242843,-317.78016784,0.00030684,2]
[357203463,1743892242852,-500.0,0.00030684,2]
[357203464,1743892242862,-500.0,0.00030684,2]
[357203465,1743892242871,-621.22181743,0.00030684,2]
[357203466,1743892242880,-500.0,0.00030684,2]
[357203467,1743892242890,-500.0,0.00030684,2]
[357203468,1743892242899,-500.0,0.00030684,2]
[357203469,1743892242909,-500.0,0.00030684,2]
[357203470,1743892242919,-500.0,0.00030684,2]
[357203471,1743892242929,-500.0,0.00030684,2]
[357203472,1743892242938,-500.0,0.00030684,2]
[357203473,1743892242948,-500.0,0.00030684,2]
[357203474,1743892242958,-500.0,0.00030684,2]
[357203475,1743892242967,-500.0,0.00030684,2]
[357203476,1743892242976,-500.0,0.00030684,2]
[357203477,1743892242986,-500.0,0.00030684,2]
[357203478,1743892242995,-553.80779872,0.00030684,2]
[357203479,1743892243004,-500.0,0.00030684,2]
[357203480,1743892243014,-2212.57883304,0.000307,2]
[357203481,1743892243024,-10437.5549109,0.00030848,2]
[357203482,1743892243033,-4377.4584,0.00030858,2]
[357203483,1743892243042,-202.5129,0.00030858,2]
[357203484,1743892243051,-7452.0545,0.00030858,2]
[357203485,1743892243060,-3233.3462,0.00030858,2]
[357203486,1743892243070,-40713.0533,0.00030858,2]
[357203487,1743892243079,-173.31939,0.0003092,47]
[357203488,1743892243089,-2609.38872773,0.00030948,2]
[357203489,1743892243098,-500.0,0.00030958,2]
[357203490,1743892243107,-500.0,0.00030958,2]
[357203491,1743892243116,-353.5716189,0.00030958,2]
[357203492,1743892243126,-500.0,0.00030958,2]
[357203493,1743892243135,-668.27,0.00030958,2]
[357203494,1743892243144,-683.11,0.00030958,2]
[357203495,1743892243154,-500.0,0.00030958,2]
[357203496,1743892243163,-500.0,0.00030958,2]
[357203497,1743892243173,-500.0,0.00030958,2]
[357203498,1743892243183,-488.05094689,0.00030958,2]
[357203499,1743892243193,-500.0,0.00030958,2]
[357203502,1743892243206,-500.0,0.00030958,2]
[357203503,1743892243215,-4035.3,0.00030958,2]
[357203504,1743892243225,-500.0,0.00030958,2]
[357203505,1743892243235,-500.0,0.00030958,2]
[357203506,1743892243244,-500.0,0.00030958,2]
[357203507,1743892243253,-500.0,0.00030958,2]
[357203508,1743892243263,-598.96873022,0.00030958,2]
[357203509,1743892243273,-240.70161286,0.00030958,2]
[357203510,1743892243283,-500.0,0.00030958,2]
[357203511,1743892243292,-500.0,0.00030958,2]
[357203512,1743892243302,-500.0,0.00030958,2]
[357203513,1743892243311,-508.86409943,0.00030958,2]
[357203514,1743892243321,-500.0,0.00030958,2]
[357203515,1743892243330,-500.0,0.00030958,2]
[357203516,1743892243340,-500.0,0.00030958,2]
[357203517,1743892243349,-500.0,0.00030958,2]
[357203518,1743892243359,-500.0,0.00030958,2]
[357203519,1743892243368,-500.0,0.00030958,2]
[357203520,1743892243378,-550.0,0.00031,2]
[357203521,1743892243388,-326.83382694,0.00031,5]
[357203522,1743892243397,-150.0,0.0003103,2]
[357203523,1743892243407,-1000.0,0.00031131,2]
[357203524,1743892243416,-2500.0,0.00031131,2]
[357203525,1743892243426,-10437.5549109,0.00031221,2]
[357203526,1743892243435,-500.0,0.00031231,2]
[357203527,1743892243445,-500.0,0.00031231,2]
[357203528,1743892243455,-500.0,0.00031231,2]
[357203529,1743892243464,-500.0,0.00031231,2]
[357203530,1743892243474,-316.12754437,0.00031231,2]
[357203531,1743892243483,-500.0,0.00031231,2]
[357203532,1743892243492,-500.0,0.00031231,2]
[357203533,1743892243502,-500.0,0.00031231,2]
[357203534,1743892243511,-500.0,0.00031231,2]
[357203535,1743892243521,-299.69070288,0.00031231,2]
[357203536,1743892243531,-387.50359568,0.00031231,2]
[357203537,1743892243540,-500.0,0.00031231,2]
[357203538,1743892243549,-500.0,0.00031231,2]
[357203539,1743892243559,-500.0,0.00031231,2]
[357203540,1743892243572,-304.35367008,0.00031231,2]
[357203541,1743892243581,-221.92726227,0.00031231,2]
[357203542,1743892243590,-500.0,0.00031231,2]
[357203543,1743892243599,-257.55642469,0.00031231,2]
[357203544,1743892243609,-500.0,0.00031231,2]
[357203545,1743892243618,-500.0,0.00031231,2]
[357203546,1743892243627,-629.89217024,0.00031231,2]
[357203547,1743892243637,-500.0,0.00031231,2]